Cogmind - Beta 13 @@@ ROGUE MODE // 2024.05.12 @ 23:11:18 Player: Toa of Guts Result: Self-destructed Performance ------------- Evolutions (5) 2500 Regions Visited (7) 1400 Robots Destroyed (94) 470 Value Destroyed (3399) 3399 Prototype IDs (12) 240 Alien Tech Used (0) 0 Bonus (104) 104 TOTAL SCORE: 8113 Bonus ------- High Alert Combat Kills 104 Cogmind --------- Core Integrity 563/1000 Matter 283/300 Energy 28/100 System Corruption 2% Temperature Cool (0) Movement Core (700) Ox13 Location -5/Factory Parts ------- > --- POWER (1) -------- (None) > --- PROPULSION (4) --- (None) > --- UTILITY (9) ------ Large Storage Unit Machine Analyzer Advanced Visual Processing Unit Improved Signal Interpreter Advanced Targeting Computer Long-range Tractor Beam > --- WEAPON (3) ------- Gatling Laser Heavy Ion Cannon Magnetic Acceleration Cannon > --- INVENTORY (15) --- Experimental Heat Sink Improved Cooling System Matter Filter Improved Field Recycling Unit (19) Antimatter Cannon Power Maul Peak State ------------ > --- POWER ------------ Fission Core > --- PROPULSION ------- Medium Treads Medium Treads Armored Huge Wheel > --- UTILITY ---------- Large Storage Unit Machine Analyzer Advanced Visual Processing Unit Improved Signal Interpreter Advanced Targeting Computer Matter Filter Kinecellerator Improved Light Armor Plating Improved Light Armor Plating > --- WEAPON ----------- Gauss Cannon Gauss Cannon Antimatter Cannon > --- INVENTORY -------- Improved Deuterium Engine Light Treads Light Treads Experimental Heat Sink Improved Cooling System Seismic Detector Layered Light Armor Plating Long-range Tractor Beam Improved Field Recycling Unit Gatling Laser Heavy Ion Cannon Magnetic Acceleration Cannon Heavy Rocket Launcher Power Maul [Rating: 67] Favorites ----------- Power Improved Deuterium Engine Engine Improved Deuterium Engine Power Core Fission Core Propulsion Light Treads Treads Light Treads Leg Carbon-fiber Leg Wheel Armored Huge Wheel Utility Large Storage Unit Device Seismic Detector Storage Large Storage Unit Processor Improved Targeting Computer Protection Improved Light Armor Plating Weapon Light Cannon Energy Gun Gatling Laser Energy Cannon Ion Cannon Ballistic Gun Light Assault Rifle Ballistic Cannon Light Cannon Launcher Heavy Rocket Launcher Impact Weapon Power Maul Build | -11 -10 -9 -9 -8 -7 -6 -5 ------- Run | Yrd Mat Mat Sto Mat Fac Fac Fac Slots Evolved 10 | . . 2 . 2 2 2 2 Power . | . . . . . . . . Propulsion 2 | . . 1 . 1 . . . Utility 7 | . . 1 . 1 2 2 1 Weapon 1 | . . . . . . . 1 Parts Attached 122 | 6 8 3 10 5 40 10 40 Power 7 | 1 . . 1 . 2 1 2 Engine 6 | 1 . . 1 . 2 . 2 Core 1 | . . . . . . 1 . Reactor . | . . . . . . . . Propulsion 23 | 2 1 2 5 2 5 . 6 Treads 16 | . 1 1 5 2 4 . 3 Leg 2 | . . . . . . . 2 Wheel 5 | 2 . 1 . . 1 . 1 Hover . | . . . . . . . . Flight . | . . . . . . . . Utility 40 | 1 5 1 . 2 10 5 16 Device 19 | . 1 . . . 4 1 13 Storage 4 | 1 2 . . . . . 1 Processor 7 | . 2 . . . 3 2 . Hackware . | . . . . . . . . Protection 10 | . . 1 . 2 3 2 2 Artifact . | . . . . . . . . Weapon 52 | 2 2 . 4 1 23 4 16 Energy Gun 2 | . . . . . . . 2 Energy Cannon 5 | . . . . 1 2 . 2 Ballistic Gun 2 | 2 . . . . . . . Ballistic Cannon 24 | . 2 . 2 . 11 2 7 Launcher 5 | . . . 2 . . . 3 Special Weapon . | . . . . . . . . Impact Weapon 14 | . . . . . 10 2 2 Slashing Weapon . | . . . . . . . . Piercing Weapon . | . . . . . . . . Special Melee Weapon . | . . . . . . . . Unidentified Prototypes . | . . . . . . . . Parts Lost 26 | . . 1 1 . 5 . 19 Power 3 | . . . . . 1 . 2 Propulsion 11 | . . 1 1 . 1 . 8 Utility 8 | . . . . . 2 . 6 Weapon 4 | . . . . . 1 . 3 Highest Loss Streak 8 | . . 1 1 . 1 . 8 To Critical Strikes . | . . . . . . . . Average Slot Usage (%) 89 | . 92 95 100 93 85 92 81 Engine 6 | . 14 11 11 9 6 1 1 Treads 18 | . 1 22 28 36 17 13 8 Wheel 6 | . 26 11 4 . 5 6 4 Device 4 | . . . . . 7 6 9 Storage 7 | . 14 11 11 9 7 6 5 Processor 15 | . 5 11 11 9 15 25 23 Protection 8 | . . 7 11 12 7 13 7 Energy Cannon 4 | . . . . 1 7 6 . Ballistic Cannon 9 | . 21 22 21 16 3 2 12 Impact Weapon 1 | . . . . . 3 3 . Naked Turns . | . . . . . . . . Heaviest Build 71 | 12 32 34 35 49 61 52 71 Greatest Support 80 | 20 20 10 60 80 80 28 35 Greatest Overweight (x) 6 | 1 3 3 3 . 2 1 6 Average Overweight (x) 1 | . . 3 1 . 1 1 1 Largest Inventory Capacity 15 | 8 15 15 15 15 15 15 15 Average Capacity 14 | 7 13 15 15 15 15 15 15 Most Carried 15 | 7 15 15 15 15 15 15 15 Average Carried 14 | 3 11 14 14 13 14 14 12 Final Capacity 15 | 8 15 15 15 15 15 15 15 Final Carried 15 | 6 15 15 14 15 15 15 6 Class Distribution -------------------- 91% | Mutant 3% | Gunner Dominant Class ---------------- Mutant | -10/Materials Mutant | -9/Materials Mutant | -9/Storage Mutant | -8/Materials Mutant | -7/Factory Mutant | -6/Factory Gunner | -5/Factory Resources | -11 -10 -9 -9 -8 -7 -6 -5 ----------- Run | Yrd Mat Mat Sto Mat Fac Fac Fac Matter Collected 3201 | 238 260 47 360 413 759 69 1055 Remotely 894 | . . . . . . . 894 Salvage Created 2655 | . 201 37 394 410 654 88 871 Parts 161 | . 12 . 43 23 48 5 30 Haulers Intercepted 4 | . . . 1 2 . . 1 Recyclers Shooed 2 | . . . . 1 . . 1 Parts Field Recycled 11 | . . . . . . . 11 Retrieved Matter 83 | . . . . . . . 83 Parts Self-Destructed . | . . . . . . . . Prevented . | . . . . . . . . Kills | -11 -10 -9 -9 -8 -7 -6 -5 ------- Run | Yrd Mat Mat Sto Mat Fac Fac Fac Combat Hostiles Destroyed 70 | . 5 1 17 10 13 1 23 Guns 1 | . . . . . . . 1 Cannons 49 | . 5 1 10 10 13 1 9 AOE 19 | . . . 7 . . . 12 Classes Destroyed 15 | . 2 1 4 2 2 1 3 Worker 2 | . . . . . . . 2 Builder 5 | . . . 2 . . . 3 Tunneler 3 | . 1 . . 1 1 . . Hauler 4 | . . . 1 2 . . 1 Recycler 2 | . . . . 1 1 . . Mechanic 2 | . . . . 1 1 . . Operator 1 | . . . . . . 1 . Watcher 5 | . . . 1 . 3 1 . Swarmer 13 | . . . 7 6 . . . Grunt 28 | . 5 . 6 2 2 . 13 Brawler 1 | . . . . . . . 1 Protector 1 | . . . . . . . 1 Sentry 15 | . . 1 4 2 4 . 4 Hunter 5 | . . . . . 1 . 4 Programmer 7 | . . . . . 6 1 . Best Kill Streak 12 | . 3 1 6 4 2 1 12 Combat Bots Only 11 | . 2 1 4 4 2 1 11 Max Kills in Single Turn 4 | . 1 1 4 2 2 1 4 Gunslinging . | . . . . . . . . Exploded 3 | . . . 2 . . . 3 Melee . | . . . . . . . . Uniques/NPCs Destroyed . | . . . . . . . . Combat | -11 -10 -9 -9 -8 -7 -6 -5 -------- Run | Yrd Mat Mat Sto Mat Fac Fac Fac Hostile Shots Fired 567 | . 7 6 51 65 215 2 221 Missed 166 | . 3 . 13 20 72 1 57 Damage Taken 5808 | . 46 91 519 477 1560 16 3099 Core 688 | . . . 74 8 153 16 437 Absorbed by Shields . | . . . . . . . . Core Remaining (%) 92 | 100 100 . 81 98 78 98 . Volleys Fired 212 | . 11 3 36 41 68 4 49 Largest 3 | . 2 2 2 2 2 2 3 Hottest 198 | . 70 70 70 95 113 113 198 Shots Fired 429 | . 22 6 68 82 129 6 116 Gun 6 | . . . . . . . 6 Cannon 408 | . 22 6 64 82 129 6 99 Launcher 15 | . . . 4 . . . 11 Special . | . . . . . . . . Kinetic 336 | . 22 6 64 75 69 2 98 Thermal 78 | . . . . 7 60 4 7 Explosive 15 | . . . 4 . . . 11 Electromagnetic . | . . . . . . . . Robot Hit Streak 24 | . 5 4 11 13 24 3 9 Robot Miss Streak 6 | . 6 1 3 3 4 . 4 Penetration Max 1 | . . . . . . . 1 Secondary Targets . | . . . . . . . . Shots Hit Robots 273 | . 10 5 41 55 89 3 70 Core Hits 148 | . 6 2 23 18 31 2 66 Critical Kills . | . . . . . . . . Critical Parts Destroyed 1 | . . . . . . . 1 Critical Strikes 12 | . 1 . 1 2 1 . 7 Blast 11 | . 1 . 1 2 1 . 6 Smash 1 | . . . . . . . 1 Melee Attacks 47 | . . . . . 33 10 4 Impact 47 | . . . . . 33 10 4 Slashing . | . . . . . . . . Piercing . | . . . . . . . . Sneak Attacks 3 | . . . . . . . 3 Combat Hostiles . | . . . . . . . . Follow-up Attacks . | . . . . . . . . Damage Inflicted 9412 | . 189 89 1267 1054 2330 120 4363 Guns 167 | . . . . . . . 167 Cannons 6199 | . 189 89 706 1050 2330 60 1775 Explosions 2710 | . . . 561 . . . 2149 Melee 332 | . . . . . . 60 272 Ramming 4 | . . . . 4 . . . Kinetic 4856 | . 189 89 706 888 1235 . 1749 Thermal 1510 | . . . . 162 1095 60 193 Explosive 2710 | . . . 561 . . . 2149 Electromagnetic . | . . . . . . . . Impact 332 | . . . . . . 60 272 Slashing . | . . . . . . . . Piercing . | . . . . . . . . Highest Corruption 5 | . . . 1 . 5 . 2 Average Corruption 1 | . . . 1 . 1 . 2 Corruption Purged . | . . . . . . . . Corruption Blocked . | . . . . . . . . Effects 37 | . . . 1 . 36 . . Message Errors 8 | . . . . . 8 . . Matter Fused 11 | . . . . . 11 . . Heat Flow Errors 7 | . . . . . 7 . . Energy Discharges 3 | . . . . . 3 . . Data Loss (minor) 3 | . . . 1 . 2 . . Data Loss (major) 2 | . . . . . 2 . . Misfires 1 | . . . . . 1 . . Alerts 1 | . . . . . 1 . . Weapon Failures 1 | . . . . . 1 . . Overload Shots . | . . . . . . . . Overflow Damage 301 | . . . 37 6 40 40 178 Projectiles 100 | . . . . 6 40 . 54 Explosions 37 | . . . 37 . . . . Melee 164 | . . . . . . 40 124 Knockbacks 59 | . 1 . 4 19 15 1 19 Impact 3 | . . . . . . 1 2 Kinetic 54 | . 1 . 4 18 15 . 16 Secondary 2 | . . . . 1 . . 1 Self-Inflicted Damage 78 | . . . 29 . . . 49 Shots 5 | . . . 1 . . . 4 Rammed 2 | . . . 1 1 . . . Targets Rammed 2 | . . . 1 1 . . . Kicked . | . . . . . . . . Crushed . | . . . . . . . . Highest Temperature 347 | . 60 36 111 117 279 36 347 Average Temperature 73 | . 17 19 30 31 100 17 107 Received Heat Transfer 1125 | . 24 45 141 144 324 . 447 Effects 4 | . . . . . 3 . 1 Energy Bleed 1 | . . . . . 1 . . Interference 2 | . . . . . 2 . . Damage (minor) 1 | . . . . . . . 1 Siege Activations . | . . . . . . . . Robots Corrupted . | . . . . . . . . Combat Hostiles . | . . . . . . . . Parts Fried 7 | . . . . . . 3 4 Impact Corruptions 7 | . . . . . . 1 6 Robots Melted 1 | . . . . . . . 1 Combat Hostiles 1 | . . . . . . . 1 Parts Melted 4 | . . . . . 3 . 1 Heat Transferred 2262 | . . . . 259 1517 74 412 Parts Sabotaged . | . . . . . . . . Parts Stolen . | . . . . . . . . Parts Stripped . | . . . . . . . . Power Chain Reactions . | . . . . . . . . Alert | -11 -10 -9 -9 -8 -7 -6 -5 ------- Run | Yrd Mat Mat Sto Mat Fac Fac Fac Peak Influence 607 | . 200 136 471 337 187 147 607 Initial 169 | . . 84 57 169 147 91 22 Average 121 | . 69 104 254 248 60 77 219 Maximum Alert Level 2 | . 1 . 2 1 . . 2 Low Security (%) 80 | 100 94 100 39 26 100 100 55 Level 1 16 | . 5 . 50 73 . . 24 Level 2 3 | . . . 10 . . . 20 Level 3 . | . . . . . . . . Level 4 . | . . . . . . . . Level 5 . | . . . . . . . . High Security . | . . . . . . . . Max Security . | . . . . . . . . Squads Dispatched 27 | . 2 1 3 2 8 1 10 Investigation 5 | . 2 . . 1 1 . 1 Extermination 6 | . . . . . 5 1 . Reinforcement 9 | . . 1 . . 2 . 6 Assault 1 | . . . . . . . 1 Garrison 6 | . . . 3 1 . . 2 Intercept . | . . . . . . . . Searches Triggered . | . . . . . . . . Construction Impeded 2 | . . . . . . . 2 Haulers Reinforced 1 | . . . . . . . 1 Active Scanning Responses . | . . . . . . . . Cargo Convoy Interrupts 1 | . . . . . . . 1 Stealth | -11 -10 -9 -9 -8 -7 -6 -5 --------- Run | Yrd Mat Mat Sto Mat Fac Fac Fac Distress Signals 5 | . 2 . 1 1 1 . . Communications Jammed . | . . . . . . . . Distress Signals . | . . . . . . . . Times Spotted 121 | . 10 4 21 14 26 6 40 Peak Tracking Total 12 | . 4 5 5 4 4 1 12 Tactical Retreats 2 | . 1 . . . 1 . . Traps | -11 -10 -9 -9 -8 -7 -6 -5 ------- Run | Yrd Mat Mat Sto Mat Fac Fac Fac Traps Triggered 7 | . 1 . 1 1 4 . . Indirectly . | . . . . . . . . Trap Hack Attempts . | . . . . . . . . Triggered . | . . . . . . . . Disarmed . | . . . . . . . . Reprogrammed . | . . . . . . . . Reused . | . . . . . . . . Traps Extracted . | . . . . . . . . Installed . | . . . . . . . . Triggered . | . . . . . . . . Machines | -11 -10 -9 -9 -8 -7 -6 -5 ---------- Run | Yrd Mat Mat Sto Mat Fac Fac Fac Machines Disabled 15 | . . . 2 2 2 1 8 Max in Single Turn 4 | . . . 1 1 1 1 4 Garrison Access 1 | . . . . . . . 1 Machines Repaired . | . . . . . . . . Machines Dismantled . | . . . . . . . . Machines Sabotaged . | . . . . . . . . Overloaded Fab Kills . | . . . . . . . . Hacking | -11 -10 -9 -9 -8 -7 -6 -5 --------- Run | Yrd Mat Mat Sto Mat Fac Fac Fac Machines Accessed 30 | . 3 3 5 2 10 4 3 Terminals 26 | . 3 3 4 2 10 3 1 Fabricators . | . . . . . . . . Repair Stations . | . . . . . . . . Recycling Units . | . . . . . . . . Scanalyzers 2 | . . . . . . 1 1 Garrison Access 2 | . . . 1 . . . 1 Total Hacks 103 | . 14 12 18 6 37 9 7 Successful 42 | . 5 5 7 3 14 6 2 Failed 61 | . 9 7 11 3 23 3 5 Catastrophic 7 | . 3 . . . 3 . 1 Database Lockouts . | . . . . . . . . Manual 50 | . 9 10 5 6 16 2 2 Terminals 93 | . 14 12 14 6 37 8 2 Fabricators . | . . . . . . . . Repair Stations . | . . . . . . . . Recycling Units . | . . . . . . . . Scanalyzers 3 | . . . . . . 1 2 Garrison Access 7 | . . . 4 . . . 3 Terminal Hacks 27 | . 3 2 5 2 11 4 . Part Schematic 3 | . 1 . 1 1 . . . Prototype ID Bank 4 | . . 1 . . 3 . . Branch Access Points 1 | . . . 1 . . . . Terminal Index 3 | . 1 . . . 1 1 . Garrison Index 1 | . . . . . 1 . . Alert Level 1 | . . . . . 1 . . Unreport Threat 1 | . . . . . 1 . . Locate Traps 4 | . 1 1 . . . 2 . Transport Status 1 | . . . 1 . . . . Hauler Manifests 1 | . . . 1 . . . . Registered Components 1 | . . . . . 1 . . Zone Layout 6 | . . . 1 1 3 1 . Fabricator Hacks . | . . . . . . . . Repair Station Hacks . | . . . . . . . . Recycling Unit Hacks . | . . . . . . . . Scanalyzer 3 | . . . . . . 1 2 Insert Component 3 | . . . . . . 1 2 Garrison Access Hacks . | . . . . . . . . Unauthorized Hacks 12 | . 2 3 2 1 3 1 . Terminals 12 | . 2 3 2 1 3 1 . Track 1 | . . 1 . . . . . Botnet 11 | . 2 2 2 1 3 1 . Fabricators . | . . . . . . . . Repair Stations . | . . . . . . . . Recycling Units . | . . . . . . . . Scanalyzers . | . . . . . . . . Garrison Access . | . . . . . . . . Data Cores Recovered 1 | . . . . . . 1 . Used . | . . . . . . . . Hacking Detections 26 | . 3 3 4 1 10 3 2 Full Trace Events 3 | . 1 1 . . . . 1 Feedback Events . | . . . . . . . . Feedback Blocked . | . . . . . . . . Robot Schematics Acquired . | . . . . . . . . Robots Built . | . . . . . . . . Authchips . | . . . . . . . . Time . | . . . . . . . . Total Robot Build Rating . | . . . . . . . . Part Schematics Acquired 3 | . 1 . 1 1 . . . Parts Built . | . . . . . . . . Authchips . | . . . . . . . . Time . | . . . . . . . . Total Part Build Rating . | . . . . . . . . Parts Repaired . | . . . . . . . . Time . | . . . . . . . . Parts Recycled . | . . . . . . . . Recycled Matter . | . . . . . . . . Retrieved Matter . | . . . . . . . . Retrieved Components . | . . . . . . . . Parts Scanalyzed . | . . . . . . . . Part Schematics Acquired . | . . . . . . . . Parts Damaged . | . . . . . . . . Bothacking | -11 -10 -9 -9 -8 -7 -6 -5 ------------ Run | Yrd Mat Mat Sto Mat Fac Fac Fac Used RIF Installer . | . . . . . . . . Robots Hacked . | . . . . . . . . Non-combat . | . . . . . . . . Combat . | . . . . . . . . Robot Hacks Applied . | . . . . . . . . Relay Couplers Released 6 | . . . . . 4 . 2 Machine Destruction 2 | . . . . . . . 2 Programmers 4 | . . . . . 4 . . Fabnet Peak Effective % . | . . . . . . . . Robots Rewired . | . . . . . . . . Allies Hacked . | . . . . . . . . Hacks Repelled . | . . . . . . . . Allies | -11 -10 -9 -9 -8 -7 -6 -5 -------- Run | Yrd Mat Mat Sto Mat Fac Fac Fac Total Allies 1 | . . . 1 . . . . Largest Group 1 | . . . 1 1 . . . Highest-Rated Group 100 | . . . 100 100 . . . Highest-Rated Ally 100 | . . . 100 100 . . . Total Orders . | . . . . . . . . Ally Attacks . | . . . . . . . . Total Damage . | . . . . . . . . Kills . | . . . . . . . . Allies Corrupted . | . . . . . . . . Allies Melted . | . . . . . . . . Intel | -11 -10 -9 -9 -8 -7 -6 -5 ------- Run | Yrd Mat Mat Sto Mat Fac Fac Fac Robot Analysis Total . | . . . . . . . . Derelict Logs Recovered . | . . . . . . . . Drone Launches . | . . . . . . . . Drone Recoveries . | . . . . . . . . Exploration | -11 -10 -9 -9 -8 -7 -6 -5 ------------- Run | Yrd Mat Mat Sto Mat Fac Fac Fac Turns Passed 6555 | 48 296 264 694 742 2933 962 616 Spaces Moved 4005 | 41 217 181 348 319 1865 744 290 Core 6 | 3 . . . . . . 3 Treads 713 | . . . 170 319 223 . 1 Legs 35 | . . . . . . . 35 Wheels 3251 | 38 217 181 178 . 1642 744 251 Hover . | . . . . . . . . Flight . | . . . . . . . . Fastest Speed 50 | 50 80 125 125 160 115 115 110 Average Speed 126 | 79 91 125 142 160 125 115 131 Slowest Speed 350 | 100 125 125 240 160 160 115 350 Overloaded Moves . | . . . . . . . . Propulsion Burnouts . | . . . . . . . . Robots Hopped . | . . . . . . . . Cave-ins Triggered . | . . . . . . . . Exploration Rate (%) 29 | 3 34 19 65 36 44 24 10 Regions Visited 7 Branch Regions 1 Pre-discovered Areas . | . . . . . . . . Known Exits Taken 2 | . . . . . 1 1 . Unknown Exits Taken 5 | 1 1 1 1 1 . . . Scrap Searched . | . . . . . . . . Spaces Dug 53 | . . . 17 . 26 9 1 Terrain Destroyed 210 | . . . 23 . 34 11 142 Melee 36 | . . . . . 26 9 1 Projectile 39 | . . . . . 8 2 29 AOE 135 | . . . 23 . . . 112 Terrain Rammed . | . . . . . . . . Walls Destroyed . | . . . . . . . . Machines Disabled . | . . . . . . . . Actions | -11 -10 -9 -9 -8 -7 -6 -5 --------- Run | Yrd Mat Mat Sto Mat Fac Fac Fac Total 5005 | 53 292 213 481 472 2255 822 417 Wait 490 | . 33 21 75 93 202 47 19 Move 3998 | 40 216 180 347 318 1864 743 290 Hop . | . . . . . . . . Pick Up 58 | 7 14 4 4 5 16 4 4 Fast Attach 21 | 5 5 1 . 2 3 1 4 Attach 35 | 1 . 2 1 2 8 1 20 Detach 11 | . 1 . . 2 . . 8 Swap 66 | . 3 . 9 1 29 8 16 Drop 49 | . 9 2 8 7 16 4 3 Fire 212 | . 11 3 36 41 68 4 49 Melee 47 | . . . . . 33 10 4 Ram . | . . . . . . . . Kick . | . . . . . . . . Crush 2 | . . . 1 1 . . . Escape Stasis 16 | . . . . . 16 . . Rewire . | . . . . . . . . Trap . | . . . . . . . . Miscellaneous . | . . . . . . . . Route ------- -11/Scrapyard -10/Materials -9/Materials -9/Storage (discovered 2 exits: *Mat / Rec) -8/Materials -7/Factory (discovered 2 exits: *Fac x2) -6/Factory (discovered 2 exits: *Fac x2) -5/Factory History --------- Turn | Location | Event 17 | -11/Scrapyard | Discovered new exit (range 15) 49 | -11/Scrapyard | Entered Materials 302 | -10/Materials | Discovered new exit (range 5) 343 | -10/Materials | Build established: Mutant 345 | -10/Materials | Entered another Materials area 345 | -9/Materials | Evolved 2 slots: Propulsion x1, Utility x1 602 | -9/Materials | Discovered new exit (range 5) 609 | -9/Materials | Entered Storage 721 | -9/Storage | Identified exit to Recycling 875 | -9/Storage | Garrison activated, responded to threat 1184 | -9/Storage | Met 01-MTF 1203 | -9/Storage | Discovered new exit (range 10) 1303 | -9/Storage | Entered Materials 1303 | -8/Materials | Accompanied by 1 ally (01-MTF) 1303 | -8/Materials | Evolved 2 slots: Propulsion x1, Utility x1 1308 | -8/Materials | 01-MTF left 1737 | -8/Materials | Garrison activated, responded to threat 1949 | -8/Materials | Discovered new exit (range 16) 2045 | -8/Materials | Entered Factory 2045 | -7/Factory | Evolved 2 slots: Utility x2 3667 | -7/Factory | Discovered new exit (range 19) 3944 | -7/Factory | Discovered new exit (range 7) 4955 | -7/Factory | Identified exit to Factory 4978 | -7/Factory | Entered another Factory area 4978 | -6/Factory | Evolved 2 slots: Utility x2 5055 | -6/Factory | Spotted B-75 Beast 5119 | -6/Factory | Discovered new exit (range 4) 5123 | -6/Factory | Identified exit to Factory 5876 | -6/Factory | Discovered exit to Factory (range 18) 5940 | -6/Factory | Entered another Factory area 5940 | -5/Factory | Evolved 2 slots: Utility x1, Weapon x1 6276 | -5/Factory | Lost 3 parts (1p1u1w) 6466 | -5/Factory | Destroyed 11 combat bots 6469 | -5/Factory | Lost 8 parts (4n4u) 6546 | -5/Factory | Cargo convoy interrupted 6556 | -5/Factory | Self-destructed Last Messages --------------- 06545_ K-01 Serf collects debris. 06545_ U-05 Engineer lays Concrete. 06546_ The unstable cave ceiling collapses. 06546_ ALERT: Cargo convoy interrupted, initiating access lockdown. 06546_ K-01 Serf collects debris. 06546_ C-30 ARC bursts open, deploying its payload. 06546_ P-70 Sage unfolds itself. 06546_ H-66 Slayer unfolds itself. 06546_ P-70 Sage unfolds itself. 06546_ H-66 Slayer unfolds itself. 06546_ I-47 Archangel unfolds itself. 06546_ U-05 Engineer builds a Wall. 06550_ U-05 Engineer lays Concrete. 06551_ Penetrated by Slug. 06551_ Gauss Cannon destroyed. 06551_ Penetrated by Slug. 06552_ U-05 Engineer lays Concrete. 06555_ K-01 Serf collects debris. 06555_ Wheel destroyed. 06556_ U-05 Engineer builds a Wall. Map ----- +----------------------------------------------------+ | ?????????????????????????????????????????????????? | | ?????????????????????????????????????????????????? | | ?????????????????????????????????????????????????? | | ?????????????????????????????????????????????????? | | ?????????????????????????????????????????????????? | | ?????????????????????????????????????????????????? | | ?????????????????????????????????????????????????? | | ?????????????????????????????????????????????????? | | ?????????????????????????????????????????????????? | | ?????????????????????????????????????????????????? | | ?????????????????????????????????????????????????? | | ?????????????????????????????????????????????????? | | ?????????????????????????????????????????????????? | | ?????????????????????###########???????####### ?? | | ?????????????????????# """""" #??????# # ?? | | ?????????????????????# """""" ###### #### | | ?????????????????????# """""" # /* | | ?????????????????????# """"" ; * * | | ?????????????????????# = !]/* | | ?????????????????????# + w " | | ?????????????????????# # ! %" | | ?????????????????????# # u# # " ## # | | ?????????????????????######p#### # ! #?? | | ????????????????????????# pp # """ #?? | | ????????????????????????# u #?"R" """ #?? | | ????????????????????????#@ """" #?" " """?#?? | | ???????????############## "" F" u ? """???? | | ???????????# # "" "" #????? ?????? | | ???????????# # #???????????? | | ???????????# # #???????????? | | ???????????# ! # """ """ #???????????? | | ???????????# # """ """ #???????????? | | ???????????# "" + """ """ #???????????? | | ???????????# % # u #???????????? | | ???????????#! # ! #???????????? | | ???????????# !" # #### ###???????????? | | ???????????# !"G" # #???+#?????????????? | | ???????????# [ " # #??????????????????? | | ???????????# # #??????????????????? | | ???????????#""" #+# # #??????????????????? | | ??????????# # #%# +??????????????????? | | ??????????### # # #### #??????????????????? | | ????????????######## #??? #??????????????????? | | ?????????????????### #### #??????????????????? | | ????############## #??????????????????? | | ????# # #??????????????????? | | ????# + #??????????????????? | | ????# """ """ # #??????????????????? | | ????# """ """ # #??????????????????? | | ????# """ """ # ###+####??????????????????? | +----------------------------------------------------+ Best States ------------- Heat Dissipation 61 Energy Generation 18 Energy Capacity 310 Matter Stores 300 Matter Capacity 300 Sight Range 20 Terrain Scan Range 16 Terrain Scan Density 10 Armor Coverage 600 Evasion (%) 55 Targeting Accuracy 8 Recoil Reduction 4 Matter Filtering 30 Kinecelleration 30 Item Schematics ----------------- Med. Storage Unit | -10/Materials | Hacked Arm. Treads | -9/Storage | Hacked Hcp. Storage Unit | -8/Materials | Hacked Robot Schematics ------------------ None Fabricated ------------ Nothing Alien Tech Used ----------------- None Achievements -------------- None Challenges ------------ None Game ------ Seed IonTransportLoader Manual? 0 Play Time 01:30:51 Cumulative 142.1 hours Start 2024.05.12 @ 21:39:31 End 2024.05.12 @ 23:11:18 Sessions 1 Manual Loads 0 Difficulty Rogue Special Mode None Game No. 91 Rogue 91 Adventurer 0 Explorer 0 Win Type - Total 4 Types 4/0/0/0/0/0/0/0/0 Lore% 46 Gallery% 55 Achievement% 39 Wizard Run 0 Options --------- Layout 0 ASCII 0 Keyboard 0 Movement Numpad Keybinds 0 Fullscreen 1 Font 24/X11 Map View 76x50 Zoom Use 0% Tactical HUD 1 Map Filters NONE Filters NONE Steam 1 RUN: 0ebed6dd-6bdc-44ae-8190-c0e79316b862